Workbook

Sheet Servicing Calculator
C2: Servicing Calculator
C4: Loan details: | M4: Version 3.3 | S4: To unlock any fields the password is
C5: New loan amount ($) | F5: Interest rate (%) | J5: P&I term (mths) | S5: Ffederal123
C6: Loan product | E6: Select - mandatory
C8: Applicant(s) details: | E8: Applicant 1 | F8: Applicant 2 | H8: Applicant 3 | J8: Applicant 4
C9: Borrower type
C10: Relationship status
C11: Number of dependents
C13: Applicant(s) income:
E14: Annual | F14: Annual | H14: Annual | J14: Annual
C15: Gross PAYG annual income
C16: Bonus/commission income
C17: Non taxable annual income
C18: Self-employed annual income
C19: Business NPBT
C20: Addbacks
C21: Residential rental income
C22: Commercial rental income
C24: Applicant(s) living expenses:
E25: Monthly | F25: Monthly | H25: Monthly | J25: Monthly
C26: Total HEM category expenses
C27: General Insurance
C28: Groceries
C29: Medical excl insurance
C30: Recreation & Entertainment
C31: Phone, internet, tech subscriptions
C32: Transport
C33: Public schooling
C34: Higher Education
C35: Principal place of residence costs
C36: Pet Care
C37: Total HEM expenses per person
C38: Non HEM comparable
C39: Private school fees
C40: Private health cover
C41: O/occ strata fees, land tax
C42: Child maintenance paid (CSA)
C43: Life insurances
C44: Investment property costs
C45: Rent or board
C46: 2nd o/occ costs
C47: Other
C48: Total non-HEM living expenses | E48: =SUM(E39:E47) -> 0 | F48: =SUM(F39:F47) -> 0 | H48: =SUM(H39:H47) -> 0 | J48: =SUM(J39:J47) -> 0
C50: Declared HEM expenses | E50: ='Nuts and Bolts'!B37 -> 0
C51: Declared non-HEM expenses | E51: =E48+F48+H48+J48 -> 0
C52: HEM +20% | E52: ='Nuts and Bolts'!B38 -> 0
C53: Living expenses for servicing | E53: =IF('Nuts and Bolts'!B42>0,'Nuts and Bolts'!B42,"0") -> 0
C55: Applicant(s) liabilities: Please complete all fields below for existing debts not being paid out for all applicants combined.
C56: Total credit card limits
C58: Existing other loans | E58: Current balance | F58: Rate | G58: Mthly pymt | H58: Loan term | I58: Ownership
C59: Personal loan, car loan, lease
C60: Personal loan, car loan, lease
C61: Personal loan, car loan, lease | J61: Ownership % of property
C63: Existing home loans | E63: Current balance | F63: Rate | G63: Mthly pymt | H63: Loan term | I63: Investment | J63: App1 | K63: App2 | L63: App3 | M63: App4
C64: Home loan
C65: Home loan
C66: Home loan
C67: Home loan
C68: Home loan
C69: Home loan
C70: Home loan
C71: Home loan
E73: DTI | F73: DSCR
E74: =IFERROR(('Nuts and Bolts'!J36),0) -> 0 | F74: =IF('Servicing Calculator'!$E$6="First Choice",'Nuts and Bolts'!P78,IF('Servicing Calculator'!$E$6="First Choice Plus",'Nuts and Bolts'!P79,IF('Servicing Calculator'!$E$6="First Freedom",'Nuts and Bolts'!P80,IF('Servicing Calculator'!$E$6="First Business 30",'Nuts and Bolts'!P81)))) -> FALSE
H76: Internal information only | J76: Max loan amount
H77: Not be included on Broker calculator | J77: =MIN('Nuts and Bolts'!J45:'Nuts and Bolts'!J46) -> 0
C79: Loans require a minimum DSCR of 1.0 and DTI < 8.0
C80: This calculator is to be used as a guide only. This is not an offer of credit or a quote.
C81: Lending criteria, verification of all information, terms and conditions will apply when an application is received.

Sheet Expense worksheet (hidden)
B2: Monthly living expenses
B3: Please add the individual borrowers estimated expenses below.
B4: Once completed the total amount for all borrowers will pre-fill on the servicing calculator)
D7: Applicant 1 | E7: Applicant 2 | F7: Applicant 3 | G7: Applicant 4
B8: Hem Comparable | D8: Monthly | E8: Monthly | F8: Monthly | G8: Monthly
B9: Childcare
B10: Clothing & Personal Care
B11: General Insurance
B12: Groceries
B13: Medical excl insurance
B14: Recreation & Entertainment
B15: Phone, internet, tech subscriptions
B16: Transport
B17: Public schooling
B18: Higher Education
B19: Principal place of residence costs
B20: Pet Care
B21: Total HEM expenses per person | D21: =SUM(D9:D20) -> 0 | E21: =SUM(E9:E20) -> 0 | F21: =SUM(F9:F20) -> 0 | G21: =SUM(G9:G20) -> 0
B22: Total HEM expenses for all applicants | D22: =D21+E21+F21+G21 -> 0
B23: Non HEM Comparable | D23: Monthly | E23: Monthly | F23: Monthly | G23: Monthly
B24: Private School Fees
B25: Private Health Cover
B26: Owner occupied Strata fees, land tax
B27: Child maintenance outgoing (CSA)
B28: STSL (HELP, HECS)
B29: Life insurances
B30: Investment Property costs
B31: Investment Property utilities, rates etc
B32: 2nd o/occ costs eg holiday house
B33: Other
B34: Total HEM expenses per person | D34: =SUM(D24:D33) -> 0 | E34: =SUM(E24:E33) -> 0 | F34: =SUM(F24:F33) -> 0 | G34: =SUM(G24:G33) -> 0
B35: Total HEM expenses for all applicants | D35: =D34+E34+F34+G34 -> 0

Sheet Nuts and Bolts (hidden)
A1: Income & Expenses | D1: Applicant 1 | G1: First Choice | H1: First Choice Plus | I1: First Freedom | L1: Applicant 2 | O1: First Choice | P1: First Choice Plus | Q1: First Freedom | T1: Income & Expenses | W1: Applicant 3 | Z1: First Choice | AA1: First Choice Plus | AB1: First Freedom | AE1: Applicant 4 | AH1: First Choice | AI1: First Choice Plus | AJ1: First Freedom
A2: Income Type | E2: Frequency | F2: Mthly Equiv | G2: Allowed | J2: Total Usable | K2: Verified By: Select from the list | L2: $ | M2: Frequency | N2: Mthly Equiv | O2: Allowed | R2: Total Usable | S2: Verified By: Select from the list | T2: Income Type | X2: Frequency | Y2: Mthly Equiv | Z2: Allowed | AC2: Total Usable | AD2: Verified By: Select from the list | AH2: Allowed | AL2: Verified By:
AE3: $ | AF3: Frequency | AG3: Mthly Equiv | AK3: Total Usable | AL3: Select from list
A4: PAYG | B4: Base | D4: ='Servicing Calculator'!E15 -> 0 | E4: pa | F4: =D4/12 -> 0 | G4: 1 | H4: 1 | I4: 1 | J4: =IF('Servicing Calculator'!$E$6="First Choice",(F4*G4),IF('Servicing Calculator'!$E$6="First Choice Plus",(F4*H4),IF('Servicing Calculator'!$E$6="First Freedom",(F4*I4),IF('Servicing Calculator'!$E$6="First Business 30",(F4*I4))))) -> FALSE | L4: ='Servicing Calculator'!F15 -> 0 | M4: pa | N4: =L4/12 -> 0 | O4: 1 | P4: 1 | Q4: 1 | R4: =IF('Servicing Calculator'!$E$6="First Choice",(N4*O4),IF('Servicing Calculator'!$E$6="First Choice Plus",(N4*P4),IF('Servicing Calculator'!$E$6="First Freedom",(N4*Q4),IF('Servicing Calculator'!$E$6="First Business 30",(N4*Q4))))) -> FALSE | T4: PAYG | V4: Base | W4: ='Servicing Calculator'!H15 -> 0 | X4: pa | Y4: =W4/12 -> 0 | Z4: 1 | AA4: 1 | AB4: 1 | AC4: =IF('Servicing Calculator'!$E$6="First Choice",(Y4*Z4),IF('Servicing Calculator'!$E$6="First Choice Plus",(Y4*AA4),IF('Servicing Calculator'!$E$6="First Freedom",(Y4*AB4),IF('Servicing Calculator'!$E$6="First Business 30",(Y4*AB4))))) -> FALSE | AE4: ='Servicing Calculator'!J15 -> 0 | AF4: pa | AG4: =AE4/12 -> 0 | AH4: 1 | AI4: 1 | AJ4: 1 | AK4: =IF('Servicing Calculator'!$E$6="First Choice",(AG4*AH4),IF('Servicing Calculator'!$E$6="First Choice Plus",(AG4*AI4),IF('Servicing Calculator'!$E$6="First Freedom",(AG4*AJ4),IF('Servicing Calculator'!$E$6="First Business 30",(AG4*AJ4))))) -> FALSE
B5: Commission/bonus | D5: ='Servicing Calculator'!E16 -> 0 | E5: pa | F5: =IF(E5="Weekly",(D5*52/12),IF(E5="Fortnightly",(D5*26/12),IF(E7="PA",(D5/12),D5))) -> 0 | G5: 1 | H5: 1 | I5: 1 | J5: =IF('Servicing Calculator'!$E$6="First Choice",(F5*G5),IF('Servicing Calculator'!$E$6="First Choice Plus",(F5*H5),IF('Servicing Calculator'!$E$6="First Freedom",(F5*I5),IF('Servicing Calculator'!$E$6="First Business 30",(F5*I5))))) -> FALSE | L5: ='Servicing Calculator'!F16 -> 0 | M5: pa | N5: =IF(M5="Weekly",(L5*52/12),IF(M5="Fortnightly",(L5*26/12),IF(M7="PA",(L5/12),D5))) -> 0 | O5: 1 | P5: 1 | Q5: 1 | R5: =IF('Servicing Calculator'!$E$6="First Choice",(N5*O5),IF('Servicing Calculator'!$E$6="First Choice Plus",(N5*P5),IF('Servicing Calculator'!$E$6="First Freedom",(N5*Q5),IF('Servicing Calculator'!$E$6="First Business 30",(N5*Q5))))) -> FALSE | V5: Commission/bonus | W5: ='Servicing Calculator'!H16 -> 0 | X5: pa | Y5: =IF(X5="Weekly",(W5*52/12),IF(X5="Fortnightly",(W5*26/12),IF(X7="PA",(W5/12),O5))) -> 0 | Z5: 1 | AA5: 1 | AB5: 1 | AC5: =IF('Servicing Calculator'!$E$6="First Choice",(Y5*Z5),IF('Servicing Calculator'!$E$6="First Choice Plus",(Y5*AA5),IF('Servicing Calculator'!$E$6="First Freedom",(Y5*AB5),IF('Servicing Calculator'!$E$6="First Business 30",(Y5*AB5))))) -> FALSE | AE5: ='Servicing Calculator'!J16 -> 0 | AF5: pa | AG5: =IF(AF5="Weekly",(AE5*52/12),IF(AF5="Fortnightly",(AE5*26/12),IF(AF7="PA",(AE5/12),W5))) -> 0 | AH5: 1 | AI5: 1 | AJ5: 1 | AK5: =IF('Servicing Calculator'!$E$6="First Choice",(AG5*AH5),IF('Servicing Calculator'!$E$6="First Choice Plus",(AG5*AI5),IF('Servicing Calculator'!$E$6="First Freedom",(AG5*AJ5),IF('Servicing Calculator'!$E$6="First Business 30",(AG5*AJ5))))) -> FALSE
A6: Self Employed ABN >12 mths | B6: Director Wages | D6: ='Servicing Calculator'!E18 -> 0 | E6: pa | F6: =IF(E6="Weekly",(D6*52/12),IF(E6="Fortnightly",(D6*26/12),IF(E6="PA",(D6/12),D6))) -> 0 | G6: 1 | H6: 1 | I6: 1 | J6: =IF('Servicing Calculator'!$E$6="First Choice",(F6*G6),IF('Servicing Calculator'!$E$6="First Choice Plus",(F6*H6),IF('Servicing Calculator'!$E$6="First Freedom",(F6*I6),IF('Servicing Calculator'!$E$6="First Business 30",(F6*I6))))) -> FALSE | L6: ='Servicing Calculator'!F18 -> 0 | M6: pa | N6: =IF(M6="Weekly",(L6*52/12),IF(M6="Fortnightly",(L6*26/12),IF(M7="PA",(L6/12),D6))) -> 0 | O6: 1 | P6: 1 | Q6: 1 | R6: =IF('Servicing Calculator'!$E$6="First Choice",(N6*O6),IF('Servicing Calculator'!$E$6="First Choice Plus",(N6*P6),IF('Servicing Calculator'!$E$6="First Freedom",(N6*Q6),IF('Servicing Calculator'!$E$6="First Business 30",(N6*Q6))))) -> FALSE | V6: Director Wages | W6: ='Servicing Calculator'!H18 -> 0 | X6: pa | Y6: =IF(X6="Weekly",(W6*52/12),IF(X6="Fortnightly",(W6*26/12),IF(X7="PA",(W6/12),O6))) -> 0 | Z6: 1 | AA6: 1 | AB6: 1 | AC6: =IF('Servicing Calculator'!$E$6="First Choice",(Y6*Z6),IF('Servicing Calculator'!$E$6="First Choice Plus",(Y6*AA6),IF('Servicing Calculator'!$E$6="First Freedom",(Y6*AB6),IF('Servicing Calculator'!$E$6="First Business 30",(Y6*AB6))))) -> FALSE | AE6: ='Servicing Calculator'!J18 -> 0 | AF6: pa | AG6: =IF(AF6="Weekly",(AE6*52/12),IF(AF6="Fortnightly",(AE6*26/12),IF(AF7="PA",(AE6/12),W6))) -> 0 | AH6: 1 | AI6: 1 | AJ6: 1 | AK6: =IF('Servicing Calculator'!$E$6="First Choice",(AG6*AH6),IF('Servicing Calculator'!$E$6="First Choice Plus",(AG6*AI6),IF('Servicing Calculator'!$E$6="First Freedom",(AG6*AJ6),IF('Servicing Calculator'!$E$6="First Business 30",(AG6*AJ6))))) -> FALSE
B7: Business NPBT | D7: ='Servicing Calculator'!E19 -> 0 | E7: pa | F7: =IF(E7="Weekly",(D7*52/12),IF(E7="Fortnightly",(D7*26/12),IF(E7="PA",(D7/12),D7))) -> 0 | G7: 1 | H7: 1 | I7: 1 | J7: =IF('Servicing Calculator'!$E$6="First Choice",(F7*G7),IF('Servicing Calculator'!$E$6="First Choice Plus",(F7*H7),IF('Servicing Calculator'!$E$6="First Freedom",(F7*I7),IF('Servicing Calculator'!$E$6="First Business 30",(F7*I7))))) -> FALSE | L7: ='Servicing Calculator'!F19 -> 0 | M7: pa | N7: =IF(M7="Weekly",(L7*52/12),IF(M7="Fortnightly",(L7*26/12),IF(M9="PA",(L7/12),D7))) -> 0 | O7: 1 | P7: 1 | Q7: 1 | R7: =IF('Servicing Calculator'!$E$6="First Choice",(N7*O7),IF('Servicing Calculator'!$E$6="First Choice Plus",(N7*P7),IF('Servicing Calculator'!$E$6="First Freedom",(N7*Q7),IF('Servicing Calculator'!$E$6="First Business 30",(N7*Q7))))) -> FALSE | V7: Profit Share | W7: ='Servicing Calculator'!H19 -> 0 | X7: pa | Y7: 0 | Z7: 1 | AA7: 1 | AB7: 1 | AC7: =IF('Servicing Calculator'!$E$6="First Choice",(Y7*Z7),IF('Servicing Calculator'!$E$6="First Choice Plus",(Y7*AA7),IF('Servicing Calculator'!$E$6="First Freedom",(Y7*AB7),IF('Servicing Calculator'!$E$6="First Business 30",(Y7*AB7))))) -> FALSE | AE7: ='Servicing Calculator'!J19 -> 0 | AF7: pa | AG7: 0 | AH7: 1 | AI7: 1 | AJ7: 1 | AK7: =IF('Servicing Calculator'!$E$6="First Choice",(AG7*AH7),IF('Servicing Calculator'!$E$6="First Choice Plus",(AG7*AI7),IF('Servicing Calculator'!$E$6="First Freedom",(AG7*AJ7),IF('Servicing Calculator'!$E$6="First Business 30",(AG7*AJ7))))) -> FALSE
B8: Addbacks | D8: ='Servicing Calculator'!E20 -> 0 | E8: pa | F8: 0 | G8: 1 | H8: 1 | I8: 1 | J8: =IF('Servicing Calculator'!$E$6="First Choice",(F8*G8),IF('Servicing Calculator'!$E$6="First Choice Plus",(F8*H8),IF('Servicing Calculator'!$E$6="First Freedom",(F8*I8),IF('Servicing Calculator'!$E$6="First Business 30",(F8*I8))))) -> FALSE | L8: ='Servicing Calculator'!F20 -> 0 | M8: pa | N8: =IF(M8="Weekly",(L8*52/12),IF(M8="Fortnightly",(L8*26/12),IF(M10="PA",(L8/12),D8))) -> 0 | O8: 1 | P8: 1 | Q8: 1 | R8: =IF('Servicing Calculator'!$E$6="First Choice",(N8*O8),IF('Servicing Calculator'!$E$6="First Choice Plus",(N8*P8),IF('Servicing Calculator'!$E$6="First Freedom",(N8*Q8),IF('Servicing Calculator'!$E$6="First Business 30",(N8*Q8))))) -> FALSE | V8: Addbacks | W8: ='Servicing Calculator'!H20 -> 0 | X8: pa | Y8: 0 | Z8: 1 | AA8: 1 | AB8: 1 | AC8: =IF('Servicing Calculator'!$E$6="First Choice",(Y8*Z8),IF('Servicing Calculator'!$E$6="First Choice Plus",(Y8*AA8),IF('Servicing Calculator'!$E$6="First Freedom",(Y8*AB8),IF('Servicing Calculator'!$E$6="First Business 30",(Y8*AB8))))) -> FALSE | AE8: ='Servicing Calculator'!J20 -> 0 | AF8: pa | AG8: 0 | AH8: 1 | AI8: 1 | AJ8: 1 | AK8: =IF('Servicing Calculator'!$E$6="First Choice",(AG8*AH8),IF('Servicing Calculator'!$E$6="First Choice Plus",(AG8*AI8),IF('Servicing Calculator'!$E$6="First Freedom",(AG8*AJ8),IF('Servicing Calculator'!$E$6="First Business 30",(AG8*AJ8))))) -> FALSE
A9: Property (use Rental Schedule | B9: Rent Residential | D9: ='Servicing Calculator'!E21 -> 0 | E9: pa | F9: =IF(E9="Weekly",(D9*52/12),IF(E9="Fortnightly",(D9*26/12),IF(E9="PA",(D9/12),D9))) -> 0 | G9: 0.8 | H9: 0.9 | I9: 0.9 | J9: =IF('Servicing Calculator'!$E$6="First Choice",(F9*G9),IF('Servicing Calculator'!$E$6="First Choice Plus",(F9*H9),IF('Servicing Calculator'!$E$6="First Freedom",(F9*I9),IF('Servicing Calculator'!$E$6="First Business 30",(F9*I9))))) -> FALSE | L9: ='Servicing Calculator'!F21 -> 0 | M9: pa | N9: 0 | O9: 0.8 | P9: 0.9 | Q9: 0.9 | R9: =IF('Servicing Calculator'!$E$6="First Choice",(N9*O9),IF('Servicing Calculator'!$E$6="First Choice Plus",(N9*P9),IF('Servicing Calculator'!$E$6="First Freedom",(N9*Q9),IF('Servicing Calculator'!$E$6="First Business 30",(N9*Q9))))) -> FALSE | T9: Property (use Rental Schedule | V9: Rent Residential | W9: ='Servicing Calculator'!H21 -> 0 | X9: pa | Y9: 0 | Z9: 0.8 | AA9: 0.9 | AB9: 0.9 | AC9: =IF('Servicing Calculator'!$E$6="First Choice",(Y9*Z9),IF('Servicing Calculator'!$E$6="First Choice Plus",(Y9*AA9),IF('Servicing Calculator'!$E$6="First Freedom",(Y9*AB9),IF('Servicing Calculator'!$E$6="First Business 30",(Y9*AB9))))) -> FALSE | AE9: ='Servicing Calculator'!J21 -> 0 | AF9: pa | AG9: 0 | AH9: 0.8 | AI9: 0.9 | AJ9: 0.9 | AK9: =IF('Servicing Calculator'!$E$6="First Choice",(AG9*AH9),IF('Servicing Calculator'!$E$6="First Choice Plus",(AG9*AI9),IF('Servicing Calculator'!$E$6="First Freedom",(AG9*AJ9),IF('Servicing Calculator'!$E$6="First Business 30",(AG9*AJ9))))) -> FALSE
A10: if insufficient room) | B10: Rent Commercial | D10: ='Servicing Calculator'!E22 -> 0 | E10: pa | F10: 0 | G10: 0.8 | H10: 0.9 | I10: 0.9 | J10: =IF('Servicing Calculator'!$E$6="First Choice",(F10*G10),IF('Servicing Calculator'!$E$6="First Choice Plus",(F10*H10),IF('Servicing Calculator'!$E$6="First Freedom",(F10*I10),IF('Servicing Calculator'!$E$6="First Business 30",(F10*I10))))) -> FALSE | L10: ='Servicing Calculator'!F22 -> 0 | M10: pa | N10: =IF(M10="Weekly",(L10*52/12),IF(M10="Fortnightly",(L10*26/12),IF(M10="PA",(L10/12),L10))) -> 0 | O10: 0.8 | P10: 0.9 | Q10: 0.9 | R10: =IF('Servicing Calculator'!$E$6="First Choice",(N10*O10),IF('Servicing Calculator'!$E$6="First Choice Plus",(N10*P10),IF('Servicing Calculator'!$E$6="First Freedom",(N10*Q10),IF('Servicing Calculator'!$E$6="First Business 30",(N10*Q10))))) -> FALSE | T10: if insufficient room) | V10: Rent Commercial | W10: ='Servicing Calculator'!H22 -> 0 | X10: pa | Y10: 0 | Z10: 0.8 | AA10: 0.9 | AB10: 0.9 | AC10: =IF('Servicing Calculator'!$E$6="First Choice",(Y10*Z10),IF('Servicing Calculator'!$E$6="First Choice Plus",(Y10*AA10),IF('Servicing Calculator'!$E$6="First Freedom",(Y10*AB10),IF('Servicing Calculator'!$E$6="First Business 30",(Y10*AB10))))) -> FALSE | AE10: ='Servicing Calculator'!J22 -> 0 | AF10: pa | AG10: 0 | AH10: 0.8 | AI10: 0.9 | AJ10: 0.9 | AK10: =IF('Servicing Calculator'!$E$6="First Choice",(AG10*AH10),IF('Servicing Calculator'!$E$6="First Choice Plus",(AG10*AI10),IF('Servicing Calculator'!$E$6="First Freedom",(AG10*AJ10),IF('Servicing Calculator'!$E$6="First Business 30",(AG10*AJ10))))) -> FALSE
A11: Govt Benefits | B11: Pension | D11: ='Servicing Calculator'!E17 -> 0 | E11: pa | F11: 0 | G11: 1 | H11: 1 | I11: 1 | J11: =IF('Servicing Calculator'!$E$6="First Choice",(F11*G11),IF('Servicing Calculator'!$E$6="First Choice Plus",(F11*H11),IF('Servicing Calculator'!$E$6="First Freedom",(F11*I11),IF('Servicing Calculator'!$E$6="First Business 30",(F11*I11))))) -> FALSE | L11: ='Servicing Calculator'!F17 -> 0 | M11: pa | N11: =L11/12 -> 0 | O11: 1 | P11: 1 | Q11: 1 | R11: =IF('Servicing Calculator'!$E$6="First Choice",(N11*O11),IF('Servicing Calculator'!$E$6="First Choice Plus",(N11*P11),IF('Servicing Calculator'!$E$6="First Freedom",(N11*Q11),IF('Servicing Calculator'!$E$6="First Business 30",(N11*Q11))))) -> FALSE | T11: Govt Benefits | V11: Pension | W11: ='Servicing Calculator'!H17 -> 0 | X11: pa | Y11: =W11/12 -> 0 | Z11: 1 | AA11: 1 | AB11: 1 | AC11: =IF('Servicing Calculator'!$E$6="First Choice",(Y11*Z11),IF('Servicing Calculator'!$E$6="First Choice Plus",(Y11*AA11),IF('Servicing Calculator'!$E$6="First Freedom",(Y11*AB11),IF('Servicing Calculator'!$E$6="First Business 30",(Y11*AB11))))) -> FALSE | AE11: ='Servicing Calculator'!J17 -> 0 | AF11: pa | AG11: =AE11/12 -> 0 | AH11: 1 | AI11: 1 | AJ11: 1 | AK11: =IF('Servicing Calculator'!$E$6="First Choice",(AG11*AH11),IF('Servicing Calculator'!$E$6="First Choice Plus",(AG11*AI11),IF('Servicing Calculator'!$E$6="First Freedom",(AG11*AJ11),IF('Servicing Calculator'!$E$6="First Business 30",(AG11*AJ11))))) -> FALSE
A12: TOTAL Allowable Monthly Income | F12: =SUM(F4:F11) -> 0 | G12: Total incl + interest income frm property | J12: =SUM(J4:J11)+'Rental Incomes'!E14-J9 -> 0 | K12: (monthly inc) | N12: =SUM(N4:N11) -> 0 | O12: Totl inc incl neg gearing | R12: =SUM(R4:R11)+'Rental Incomes'!F14 -> 0 | T12: TOTAL Allowable Monthly Income | Y12: =SUM(Y4:Y11) -> 0 | Z12: Totl inc incl neg gearing | AC12: =SUM(AC4:AC11)+'Rental Incomes'!G14 -> 0 | AG12: =SUM(AG4:AG11) -> 0 | AH12: Totl inc incl neg gearing | AK12: =SUM(AK4:AK11)+'Rental Incomes'!H14 -> 0
A13: Annualised | F13: =+F12*12 -> 0 | J13: =J12*12 -> 0 | K13: (annual) | N13: =+N12*12 -> 0 | R13: =R12*12 -> 0 | T13: Annualised | Y13: =+Y12*12 -> 0 | AC13: =AC12*12 -> 0 | AG13: =+AG12*12 -> 0 | AK13: =AK12*12 -> 0
C14: Total PAYG | F14: =SUM(F4:F4) -> 0 | L14: Total PAYG | N14: =SUM(N4:N4) -> 0 | W14: Total PAYG | Y14: =SUM(Y4:Y4) -> 0 | AE14: Total PAYG | AG14: =SUM(AG4:AG4) -> 0
C15: Total Self Employed | F15: =SUM(F6:F7) -> 0 | L15: Total Self Employed | N15: =SUM(N6:N7) -> 0 | W15: Total Self Employed | Y15: =SUM(Y6:Y7) -> 0 | AE15: Total Self Employed | AG15: =SUM(AG6:AG7) -> 0
C16: TOTAL Property | F16: =+F9+F10 -> 0 | L16: TOTAL Property | N16: =+N9+N10 -> 0 | W16: TOTAL Property | Y16: =+Y9+Y10 -> 0 | AE16: TOTAL Property | AG16: =+AG9+AG10 -> 0
C17: Other | F17: =SUM(F11:F11) -> 0 | L17: Other | N17: =SUM(N11:N11) -> 0 | W17: Other | Y17: =SUM(Y11:Y11) -> 0 | AE17: Other | AG17: =SUM(AG11:AG11) -> 0
A18: Financial Commitments | D18: Balance/Limit | E18: Int Rate % | F18: TTM, mths | G18: Actual Monthly Payt | J18: Calculated based on floor rate | K18: Buffered Mthly rpyt | L18: Adopted ($0 if clearing) | M18: App 1 | N18: App2 | O18: App3 | R18: App4
A19: ='Servicing Calculator'!C64 -> Home loan | D19: =IFERROR('Servicing Calculator'!E64,0) -> 0 | E19: ='Servicing Calculator'!F64 -> 0 | F19: ='Servicing Calculator'!H64 -> 0 | G19: ='Servicing Calculator'!G64 -> 0 | J19: =IFERROR(PMT((Lookups!$B$3)/12,F19,-D19),0) -> 0 | K19: =IF(A19="Home Loan",IFERROR(PMT((E19+Lookups!$B$4)/12,F19,-D19),0)) -> 0 | L19: =IF(B19="Yes",0,MAX(G19:K19)) -> 0 | M19: =IFERROR(L19,0) -> 0
A20: ='Servicing Calculator'!C65 -> Home loan | D20: =IFERROR('Servicing Calculator'!E65,0) -> 0 | E20: ='Servicing Calculator'!F65 -> 0 | F20: ='Servicing Calculator'!H65 -> 0 | G20: ='Servicing Calculator'!G65 -> 0 | J20: =IFERROR(PMT((Lookups!$B$3)/12,F20,-D20),0) -> 0 | K20: =IF(A20="Home Loan",IFERROR(PMT((E20+Lookups!$B$4)/12,F20,-D20),0),G20) -> 0 | L20: 0 | M20: 0
A21: ='Servicing Calculator'!C66 -> Home loan | D21: =IFERROR('Servicing Calculator'!E66,0) -> 0 | E21: ='Servicing Calculator'!F66 -> 0 | F21: ='Servicing Calculator'!H66 -> 0 | G21: ='Servicing Calculator'!G66 -> 0 | J21: =IFERROR(PMT((Lookups!$B$3)/12,F21,-D21),0) -> 0 | K21: =IF(A21="Home Loan",IFERROR(PMT((E21+Lookups!$B$4)/12,F21,-D21),0),G21) -> 0 | L21: 0 | M21: 0
A22: ='Servicing Calculator'!C67 -> Home loan | D22: =IFERROR('Servicing Calculator'!E67,0) -> 0 | E22: ='Servicing Calculator'!F67 -> 0 | F22: ='Servicing Calculator'!H67 -> 0 | G22: ='Servicing Calculator'!G67 -> 0 | J22: =IFERROR(PMT((Lookups!$B$3)/12,F22,-D22),0) -> 0 | K22: =IF(A22="Home Loan",IFERROR(PMT((E22+Lookups!$B$4)/12,F22,-D22),0),G22) -> 0 | L22: 0 | M22: 0
A23: ='Servicing Calculator'!C68 -> Home loan | D23: ='Servicing Calculator'!E68 -> 0 | E23: ='Servicing Calculator'!F68 -> 0 | F23: ='Servicing Calculator'!H68 -> 0 | G23: ='Servicing Calculator'!G68 -> 0 | J23: =IFERROR(PMT((Lookups!$B$3)/12,F23,-D23),0) -> 0 | K23: =IF(A23="Home Loan",IFERROR(PMT((E23+Lookups!$B$4)/12,F23,-D23),0)) -> 0 | L23: 0 | M23: 0
A24: ='Servicing Calculator'!C69 -> Home loan | D24: =IFERROR('Servicing Calculator'!E69,0) -> 0 | E24: ='Servicing Calculator'!F69 -> 0 | F24: ='Servicing Calculator'!H69 -> 0 | G24: ='Servicing Calculator'!G69 -> 0 | J24: =IFERROR(PMT((Lookups!$B$3)/12,F24,-D24),0) -> 0 | K24: =IF(A24="Home Loan",IFERROR(PMT((E24+Lookups!$B$4)/12,F24,-D24),0),G24) -> 0 | L24: 0 | M24: 0
A25: ='Servicing Calculator'!C70 -> Home loan | D25: =IFERROR('Servicing Calculator'!E70,0) -> 0 | E25: ='Servicing Calculator'!F70 -> 0 | F25: ='Servicing Calculator'!H70 -> 0 | G25: ='Servicing Calculator'!G70 -> 0 | J25: =IFERROR(PMT((Lookups!$B$3)/12,F25,-D25),0) -> 0 | K25: =IF(A25="Home Loan",IFERROR(PMT((E25+Lookups!$B$4)/12,F25,-D25),0),G25) -> 0 | L25: 0 | M25: 0
A26: ='Servicing Calculator'!C71 -> Home loan | D26: =IFERROR('Servicing Calculator'!E71,0) -> 0 | E26: ='Servicing Calculator'!F71 -> 0 | F26: ='Servicing Calculator'!H71 -> 0 | G26: ='Servicing Calculator'!G71 -> 0 | J26: =IFERROR(PMT((Lookups!$B$3)/12,F26,-D26),0) -> 0 | K26: =IF(A26="Home Loan",IFERROR(PMT((E26+Lookups!$B$4)/12,F26,-D26),0),G26) -> 0 | L26: 0 | M26: 0
A27: Total C/Cards, O/d, afterpays | D27: ='Servicing Calculator'!E56 -> 0 | G27: N/A | J27: N/A | K27: =D27*3.8% -> 0 | L27: 0 | M27: =L27 -> 0
A28: Personal loan, car loan, lease | D28: =IFERROR('Servicing Calculator'!E59,0) -> 0 | E28: =IFERROR('Servicing Calculator'!F59,0) -> 0 | F28: =IFERROR('Servicing Calculator'!H59,0) -> 0 | G28: =IFERROR('Servicing Calculator'!G59,0) -> 0 | J28: =IFERROR(PMT((Lookups!B3)/12,F28,-D28),0) -> 0 | K28: =IF(A28="Personal loan, car loan, lease",IFERROR(PMT((E28+Lookups!$B$4)/12,F28,-D28),0),G28) -> 0 | L28: =IF(B19="Yes",0,MAX(G28:K28)) -> 0 | M28: =IFERROR(L28,0) -> 0
A29: Personal loan, car loan, lease | D29: =IFERROR('Servicing Calculator'!E60,0) -> 0 | E29: =IFERROR('Servicing Calculator'!F60,0) -> 0 | F29: =IFERROR('Servicing Calculator'!H60,0) -> 0 | G29: =IFERROR('Servicing Calculator'!G60,0) -> 0 | J29: =IFERROR(PMT((Lookups!B4)/12,F29,-D29),0) -> 0 | K29: =IF(A29="Personal loan, car loan, lease",IFERROR(PMT((E29+Lookups!$B$4)/12,F29,-D29),0),G29) -> 0 | L29: =IF(B20="Yes",0,MAX(G29:K29)) -> 0 | M29: =IFERROR(L29,0) -> 0
A30: Personal loan, car loan, lease | D30: =IFERROR('Servicing Calculator'!E61,0) -> 0 | E30: =IFERROR('Servicing Calculator'!F61,0) -> 0 | F30: =IFERROR('Servicing Calculator'!H61,0) -> 0 | G30: =IFERROR('Servicing Calculator'!G61,0) -> 0 | J30: =IFERROR(PMT((Lookups!B5)/12,F30,-D30),0) -> 0 | K30: =IF(A30="Personal loan, car loan, lease",IFERROR(PMT((E30+Lookups!$B$4)/12,F30,-D30),0),G30) -> 0 | L30: =IF(B21="Yes",0,MAX(G30:K30)) -> 0 | M30: =IFERROR(L30,0) -> 0
A31: TOTAL FINANCIAL COMMITMENTS | C31: =SUM(C19:C30) -> 0 | D31: =SUM(D19:D30) -> 0 | G31: =SUM(G19:G30) -> 0 | J31: =SUM(J19:J30) -> 0 | K31: =IFERROR(SUM(K19:K30),0) -> 0 | L31: =IFERROR(SUM(L19:L30),0) -> 0 | M31: =IFERROR(SUM(M19:M30),0) -> 0 | N31: =SUM(N19:N30) -> 0 | O31: =SUM(O19:O30) -> 0 | R31: =SUM(R19:R30) -> 0
A33: Sum of Clearing loans | D33: =SUMIF(B19:B30,"Yes",D19:D30) -> 0 | J33: Requested loan amount | K33: Requested loan term
J34: ='Servicing Calculator'!E5 -> 0 | K34: ='Servicing Calculator'!M5 -> 0
A35: EXPENSES | B35: Total | C35: Applicant 1 | D35: Applicant 2 | E35: Applicant 3 | F35: Applicant 4 | J35: DTI | L35: Summary | M35: Total | O35: App 1 | S35: App 2 | U35: App 3 | W35: App 4
A36: Declared HEM expenses | B36: ='Servicing Calculator'!E50 -> 0 | J36: =(D31+J34-D33)/N37 ->  | M36: Mthly | N36: PA | O36: Monthly | R36: PA | S36: Monthly | T36: PA | U36: Mthly | V36: PA | W36: Mthly | X36: PA
A37: TOTAL CDE | B37: ='Servicing Calculator'!E26+'Servicing Calculator'!F26+'Servicing Calculator'!H26+'Servicing Calculator'!J26 -> 0 | J37: DSCR | L37: Total Gross Income | M37: =+O37+S37+U37+W37 -> 0 | N37: =+R37+T37+V37+X37 -> 0 | O37: =J12 -> 0 | R37: =+O37*12 -> 0 | S37: =R12 -> 0 | T37: =+S37*12 -> 0 | U37: =AC12 -> 0 | V37: =+U37*12 -> 0 | W37: =AK12 -> 0 | X37: =+W37*12 -> 0
A38: HEM - no buffer | B38: =R69 -> 0 | J38: See yellow box below | L38: Less tax incl Medicare Levy | M38: =+O38+S38+U38+W38 -> 0 | N38: =+R38+T38+V38+X38 -> 0 | O38: =Lookups!I20/12 -> 0 | R38: =Lookups!I20 -> 0 | S38: =Lookups!J20/12 -> 0 | T38: =Lookups!J20 -> 0 | U38: =Lookups!K20/12 -> 0 | V38: =Lookups!K20 -> 0 | W38: =Lookups!L20 -> 0 | X38: =Lookups!L20 -> 0
A39: Higher of declared vs HEM +20% | B39: =B38 -> 0 | J39: NSR | L39: Post Tax Income | M39: =+O39+S39+U39+W39+J9 -> 0 | N39: 0 | O39: =O37-O38 -> 0 | R39: =R37-R38 -> 0 | S39: =S37-S38 -> 0 | T39: =T37-T38 -> 0 | U39: =U37-U38 -> 0 | V39: =+U39*12 -> 0 | W39: =W38-W37 -> 0 | X39: 0
A40: Use | B40: =MAX(B36:B39) -> 0 | J40: =(J43)/(M40+M41) ->  | L40: Financial Commitments | M40: =IFERROR(+O40+S40+U40+W40,0) -> 0 | N40: =+R40+T40+V40+X40 -> 0 | O40: =IFERROR(M31,0) -> 0 | R40: =+O40*12 -> 0 | S40: =N31 -> 0 | T40: =+S40*12 -> 0 | U40: =O31 -> 0 | V40: 0 | W40: =R31 -> 0 | X40: 0
A41: Total NonHEM Comp Exp's | B41: ='Servicing Calculator'!E51 -> 0 | L41: Proposed Commitments | M41: =+O41+S41+U41+W41 -> 0 | N41: 0 | O41: =C62 -> 0 | R41: =+O41*12 -> 0 | S41: =D62 -> 0 | T41: =+S41*12 -> 0 | U41: =E62 -> 0 | V41: 0 | W41: =F62 -> 0 | X41: 0
A42: TOTAL EXPENSES | B42: =_xlfn.IFS('Servicing Calculator'!E6="First Choice",('Nuts and Bolts'!B40+B41),'Servicing Calculator'!E6="First Choice Plus",('Nuts and Bolts'!B40+B41),'Servicing Calculator'!E6="First Freedom",('Nuts and Bolts'!B40+B41),'Servicing Calculator'!E6="Select - mandatory",0,'Servicing Calculator'!E6="",0,'Servicing Calculator'!E6="First Business 30",'Nuts and Bolts'!B37+B41) -> 0 | L42: CDE/HEM Expenses- higher of | N42: =+R42+T42+V42+X42 -> 0 | O42: =B40 -> 0 | R42: =+O42*12 -> 0 | S42: =MAX(D40) -> 0 | T42: =+S42*12 -> 0 | U42: =MAX(E40) -> 0 | V42: 0 | W42: =MAX(F40) -> 0 | X42: 0
L43: Non HEM Expenses | N43: 0 | O43: =B41 -> 0 | R43: =+O43*12 -> 0 | S43: =D42 -> 0 | T43: =+S43*12 -> 0 | U43: =E42 -> 0 | V43: 0 | W43: =F42 -> 0 | X43: 0
L44: Total Expenses | M44: =+O44+S44+U44+W44 -> 0 | N44: 0 | O44: =SUM(O40:O43) -> 0 | R44: =SUM(R40:R43) -> 0 | S44: =SUM(S40:S43) -> 0 | T44: =SUM(T40:T43) -> 0 | U44: =SUM(U40:U43) -> 0 | V44: 0 | W44: 0 | X44: 0
L46: Surplus/Deficit. | M46: =+O46+S46+U46+W46 -> 0 | N46: =+R46+T46+V46+X46 -> 0 | O46: =+O39-O44 -> 0 | R46: =+O46*12 -> 0 | S46: =+S39-S44 -> 0 | T46: =+S46*12 -> 0 | U46: =+U39-U44 -> 0 | V46: =+U46*12 -> 0 | W46: =+W39-W44 -> 0 | X46: =+W46*12 -> 0
J48: HEM Estimator
K49: Date | N49: App 1 | O49: App 2 | P49: App 3 | Q49: App 4 | R49: Total
J50: HEM Basic | K50: 2026-05-01
K51: Weekly | L51: Monthly
J52: Couple | K52: 822 | L52: =(K52*52)/12 -> 3562 | M52: =L52 -> 3562 | N52: =IF(N$71=$J52,$M52,0)*N$72 -> 0 | O52: 0 | P52: 0 | Q52: 0 | R52: =SUM(N52:Q52) -> 0
J53: Couple with 1 child | K53: 1066 | L53: =(K53*52)/12 -> 4619.333333 | M53: =L53 -> 4619.333333 | N53: 0 | O53: 0 | P53: 0 | Q53: 0 | R53: =SUM(N53:Q53) -> 0
J55: Couple with 2 children | K55: 1137 | L55: =(K55*52)/12 -> 4927 | M55: =L55 -> 4927 | N55: =IF(N$71=$J55,$M55,0)*N$72 -> 0 | O55: 0 | P55: 0 | Q55: 0 | R55: =SUM(N55:Q55) -> 0
J56: Couple with 3 children | K56: 1235 | L56: =(K56*52)/12 -> 5351.666667 | M56: =L56 -> 5351.666667 | N56: 0 | O56: 0 | P56: 0 | Q56: 0 | R56: =SUM(N56:Q56) -> 0
J57: Couple with 4 children | K57: 1360 | L57: =(K57*52)/12 -> 5893.333333 | M57: =L57 -> 5893.333333 | N57: 0 | O57: 0 | P57: 0 | Q57: 0 | R57: =SUM(N57:Q57) -> 0
J58: Couple with more than 4 children | N58: =IF(AND('Servicing Calculator'!E10<>"Single",'Servicing Calculator'!E11>4),'Nuts and Bolts'!$M$57,0)*'Nuts and Bolts'!N$72 -> 0 | O58: =IF(AND('Servicing Calculator'!F10<>"Single",'Servicing Calculator'!F11>4),'Nuts and Bolts'!$M$57,0)*'Nuts and Bolts'!N$72 -> 0 | P58: =IF(AND('Servicing Calculator'!H10<>"Single",'Servicing Calculator'!H11>4),'Nuts and Bolts'!$M$57,0)*'Nuts and Bolts'!P$72 -> 0 | Q58: =IF(AND('Servicing Calculator'!J10<>"Single",'Servicing Calculator'!J11>4),'Nuts and Bolts'!$M$57,0)*'Nuts and Bolts'!Q$72 -> 0 | R58: =SUM(N58:Q58) -> 0
J60: Single person | K60: 385 | L60: =(K60*52)/12 -> 1668.333333 | M60: =L60 -> 1668.333333 | N60: =IF(N$71=$J60,$M60,0)*N$72 -> 0 | O60: 0 | P60: 0 | Q60: 0 | R60: =SUM(N60:Q60) -> 0
J61: Single parent with 1 child | K61: 525 | L61: =(K61*52)/12 -> 2275 | M61: =L61 -> 2275 | N61: 0 | O61: 0 | P61: 0 | Q61: 0 | R61: 0
J62: Single parent with 2 children | K62: 619 | L62: =(K62*52)/12 -> 2682.333333 | M62: =L62 -> 2682.333333 | N62: 0 | O62: 0 | P62: 0 | Q62: 0 | R62: 0
J63: Single parent with 3 children | K63: 712 | L63: =(K63*52)/12 -> 3085.333333 | M63: =L63 -> 3085.333333 | N63: 0 | O63: 0 | P63: 0 | Q63: 0 | R63: 0
J64: Single parent with 4 children | K64: 837 | L64: =(K64*52)/12 -> 3627 | M64: =L64 -> 3627 | N64: 0 | O64: 0 | P64: 0 | Q64: 0 | R64: 0
J65: Single parent with more than 4 children | N65: =IF(AND('Servicing Calculator'!E10="single",'Servicing Calculator'!E11>4),'Nuts and Bolts'!$M$64,0)*'Nuts and Bolts'!N$72 -> 0 | O65: =IF(AND('Servicing Calculator'!F10="single",'Servicing Calculator'!F11>4),'Nuts and Bolts'!$M$64,0)*'Nuts and Bolts'!N$72 -> 0 | P65: =IF(AND('Servicing Calculator'!H10="single",'Servicing Calculator'!H11>4),'Nuts and Bolts'!$M$64,0)*'Nuts and Bolts'!P$72 -> 0 | Q65: =IF(AND('Servicing Calculator'!J10="single",'Servicing Calculator'!J11>4),'Nuts and Bolts'!$M$64,0)*'Nuts and Bolts'!Q$72 -> 0 | R65: 0
J67: Any additional children (each) | K67: 125 | L67: =K67*52/12 -> 541.6666667 | M67: =L67 -> 541.6666667 | N67: =IF('Servicing Calculator'!E11<4,0,'Nuts and Bolts'!$M$67*('Servicing Calculator'!E11-4))*N72 -> 0 | O67: =IF('Servicing Calculator'!F11<4,0,'Nuts and Bolts'!$M$67*('Servicing Calculator'!F11-4))*O72 -> 0 | P67: =IF('Servicing Calculator'!H11<4,0,'Nuts and Bolts'!$M$67*('Servicing Calculator'!H11-4))*P72 -> 0 | Q67: =IF('Servicing Calculator'!J11<4,0,'Nuts and Bolts'!$M$67*('Servicing Calculator'!J11-4))*Q72 -> 0 | R67: =SUM(N67:Q67) -> 0
J69: Grand Total | R69: =SUM(R52:R67) -> 0
C70: First Choice loans | M70: Result Returned | N70: =IF(ISBLANK('Servicing Calculator'!E10),0,(IF('Servicing Calculator'!E11>4,0,(IF('Servicing Calculator'!E11=0,VLOOKUP('Servicing Calculator'!E10,Lookups!$A$32:$D$62,2,FALSE),VLOOKUP('Servicing Calculator'!E10,Lookups!$A$32:$D$62,3,FALSE)))))) -> 0 | O70: =IF(ISBLANK('Servicing Calculator'!F10),0,(IF('Servicing Calculator'!F11>4,0,(IF('Servicing Calculator'!F11=0,VLOOKUP('Servicing Calculator'!F10,Lookups!$A$32:$D$62,2,FALSE),VLOOKUP('Servicing Calculator'!F10,Lookups!$A$32:$D$62,3,FALSE)))))) -> 0 | P70: =IF(ISBLANK('Servicing Calculator'!H10),0,(IF('Servicing Calculator'!H11>4,0,(IF('Servicing Calculator'!H11=0,VLOOKUP('Servicing Calculator'!H10,Lookups!$A$32:$D$62,2,FALSE),VLOOKUP('Servicing Calculator'!H10,Lookups!$A$32:$D$62,3,FALSE)))))) -> 0 | Q70: =IF(ISBLANK('Servicing Calculator'!J10),0,(IF('Servicing Calculator'!J11>4,0,(IF('Servicing Calculator'!J11=0,VLOOKUP('Servicing Calculator'!J10,Lookups!$A$32:$D$62,2,FALSE),VLOOKUP('Servicing Calculator'!J10,Lookups!$A$32:$D$62,3,FALSE)))))) -> 0
A71: Bsuiness 30 | C71: Actual commitment | E71: Buffered Commitment | G71: Floor Rate Commitment | N71: =IF(N70=0,0,(IF('Servicing Calculator'!E11=1,'Nuts and Bolts'!N70&" with "&"1 child",IF('Servicing Calculator'!E11=0,'Nuts and Bolts'!N70,'Nuts and Bolts'!N70&" with "&'Servicing Calculator'!E11&" children")))) -> 0 | O71: =IF(O70=0,0,(IF('Servicing Calculator'!F11=1,'Nuts and Bolts'!O70&" with "&"1 child",IF('Servicing Calculator'!F11=0,'Nuts and Bolts'!O70,'Nuts and Bolts'!O70&" with "&'Servicing Calculator'!F11&" children")))) -> 0 | P71: =IF(P70=0,0,(IF('Servicing Calculator'!H11=1,'Nuts and Bolts'!P70&" with "&"1 child",IF('Servicing Calculator'!H11=0,'Nuts and Bolts'!P70,'Nuts and Bolts'!P70&" with "&'Servicing Calculator'!H11&" children")))) -> 0 | Q71: =IF(Q70=0,0,(IF('Servicing Calculator'!J11=1,'Nuts and Bolts'!Q70&" with "&"1 child",IF('Servicing Calculator'!J11=0,'Nuts and Bolts'!Q70,'Nuts and Bolts'!Q70&" with "&'Servicing Calculator'!J11&" children")))) -> 0
A72: Actual Commitment | B72: =D96 -> 0 | C72: Annual % | D72: ='Servicing Calculator'!H5 -> 0 | E72: Annual % | F72: =D72+2% -> 0.02 | G72: Annual % | J72: =Lookups!B3 -> 0.05 | M72: Weighting | N72: =IF(ISBLANK('Servicing Calculator'!E10),0,VLOOKUP('Servicing Calculator'!E10,Lookups!$A$32:$D$62,4,FALSE)) -> 0 | O72: =IF(ISBLANK('Servicing Calculator'!F10),0,VLOOKUP('Servicing Calculator'!F10,Lookups!$A$32:$D$62,4,FALSE)) -> 0 | P72: =IF(ISBLANK('Servicing Calculator'!H10),0,VLOOKUP('Servicing Calculator'!H10,Lookups!$A$32:$D$62,4,FALSE)) -> 0 | Q72: =IF(ISBLANK('Servicing Calculator'!J10),0,VLOOKUP('Servicing Calculator'!J10,Lookups!$A$32:$D$62,4,FALSE)) -> 0
A73: Including CLF Commitment | B73: =F96 -> 0 | C73: Loan term (years) | D73: =D74/12 -> 0 | E73: Loan term (years) | F73: =F74/12 -> 0 | G73: Loan term (years) | J73: =J74/12 -> 0
C74: No of payments | D74: =K34 -> 0 | E74: No of payments | F74: =K34 -> 0 | G74: No of payments | J74: =K34 -> 0
C75: Loan amount | D75: =J34 -> 0 | E75: Loan amount | F75: =J34 -> 0 | G75: Loan amount | J75: =J34 -> 0
A77: Status | C77: Monthly payment | D77: =-IFERROR(PMT(D72/12,D74,D75),0) -> 0 | E77: Monthly payment | F77: =-IFERROR(PMT(F72/12,F74,F75),0) -> 0 | G77: Monthly payment | J77: =-IFERROR(PMT(J72/12,J74,J75),0) -> 0 | M77: Repayment for servicing | N77: HEM Expenses | O77: Non-HEM Expenses | P77: DSCR
A78: Single | L78: First Choice | M78: =F77 -> 0 | N78: =B40 -> 0 | O78: =B41 -> 0 | P78: =IF(($M$40+M78+O78)=0,"",($M$39-N78)/($M$40+M78+O78)) -> 
A79: Spouse of another applicant | C79: First Choice Plus & First Freedom loans | L79: First Choice plus | M79: =F86 -> 0 | N79: =B40 -> 0 | O79: =B41 -> 0 | P79: =IF(($M$40+M79+O79)=0,"",($M$39-N79)/($M$40+M79+O79)) -> 
A80: Spouse to non-applicant | C80: Actual commitment | E80: Buffered Commitment | G80: Floor Rate Commitment | L80: First Freedom | M80: =F86 -> 0 | N80: =N79 -> 0 | O80: =B41 -> 0
C81: Annual % | D81: ='Servicing Calculator'!H5 -> 0 | E81: Annual % | F81: =D81+2% -> 0.02 | G81: Annual % | J81: =Lookups!B3 -> 0.05 | L81: First Business30 | M81: =F96 -> 0 | N81: =N78 -> 0 | O81: =B41 -> 0
A82: Interest rate monthly | C82: Loan term (years) | D82: =D83/12 -> 0 | E82: Loan term (years) | F82: =F83/12 -> 0 | G82: Loan term (years) | J82: =J83/12 -> 0
A83: ='Servicing Calculator'!H5/12 -> 0 | C83: No of payments | D83: =K34 -> 0 | E83: No of payments | F83: =K34 -> 0 | G83: No of payments | J83: =K34 -> 0
C84: Loan amount | D84: =J34 -> 0 | E84: Loan amount | F84: =J34 -> 0 | G84: Loan amount | J84: =J34 -> 0
C86: Monthly payment | D86: =-IFERROR(PMT(D81/12,D83,D84),0) -> 0 | E86: Monthly payment | F86: =-IFERROR(PMT(F81/12,F83,F84),0) -> 0 | G86: Monthly payment | J86: =-IFERROR(PMT(J81/12,J83,J84),0) -> 0
C89: Non-Code loans
C90: Actual commitment | E90: Commitment including CLF
C91: Annual % | D91: ='Servicing Calculator'!H5 -> 0 | E91: Annual % | F91: ='Servicing Calculator'!H5:I5+Lookups!B12 -> 0.012 | G91: 0.012
C92: Loan term (years) | D92: =D93/12 -> 0 | E92: Loan term (years) | F92: =F93/12 -> 0
C93: No of payments | D93: =K34 -> 0 | E93: No of payments | F93: =K34 -> 0
C94: Loan amount | D94: =J34 -> 0 | E94: Loan amount | F94: =J34 -> 0
C96: Monthly payment | D96: =-IFERROR(PMT(D91/12,D93,D94),0) -> 0 | E96: Monthly payment | F96: =-IFERROR(PMT(F91/12,F93,F94),0) -> 0
E99: b51 | F99: =IF('Servicing Calculator'!E6="First Choice",MAX(B37:B38),IF('Servicing Calculator'!E6="First Choice Plus",MAX(B37:B38),IF('Servicing Calculator'!E6="First Freedom",MAX(B37,#REF!)))) -> FALSE | J99: Changes made fro Westpac
E100: b54 | F100: =IF('Servicing Calculator'!E6="First Choice",(B38+B41),IF('Servicing Calculator'!E6="First Choice Plus",(B38+B41),IF('Servicing Calculator'!E6="First Freedom",(#REF!+B41)))) -> FALSE | J100: Shading on resi rental income
J101: Shading on commercial rental income
J102: Shading on bonus/comms
J103: DSCR on man calc page
J104: Version number
J105: HEM buffer removed
J106: Prime buffered commitment dropped from 3-2%

Sheet Lookups (hidden)
A1: Decision & Control Parameters | D1: Valuations | H1: Tax Tables | I1: 2022/23 | J1: Tax Rate | K1: Threshold | L1: App 1 | M1: App 2 | N1: App 3 | O1: App 4
A2: Interest Rates | B2: PA | C2: Mthly | D2: AVM | H2: 0 | I2: 18200 | J2: 0 | K2: 0 | L2: 0 | M2: 0 | N2: 0 | O2: 0
A3: Floor | B3: 0.05 | C3: =+B3/12 -> 0.004166666667 | D3: Max FSD | E3: 15 | F3: Upgrade to DT | H3: 18201 | I3: 45000 | J3: 0.16 | K3: =(I3-H3)*J3 -> 4287.84 | L3: =IF(OR(I$11=0,I$11<$H3),0,IF(I$11>$I3,$K3,(I$11-$H3)*$J3)) -> 0 | M3: =IF(OR(J$11=0,J$11<$H3),0,IF(J$11>$I3,$K3,(J$11-$H3)*$J3)) -> 0 | N3: 0 | O3: 0
A4: Buffer | B4: 0.02 | C4: =+B4/12 -> 0.001666666667 | D4: Desktop | H4: 45001 | I4: 135000 | J4: 0.3 | K4: =(I4-H4)*J4 -> 26999.7 | L4: =IF(OR(I$11=0,I$11<$H4),0,IF(I$11>$I4,$K4,(I$11-$H4)*$J4)) -> 0 | M4: 0 | N4: 0 | O4: 0
A5: Revolving | B5: 0.038 | C5: 0.003166666667 | D5: Max Ppty Risk | E5: 750 | F5: Upgrade to Full Val | H5: 135001 | I5: 190000 | J5: 0.37 | K5: 20349.63 | L5: 0 | M5: 0 | N5: 0 | O5: 0
A6: Actual Interest rate | B6: ='Servicing Calculator'!H5 -> 0 | C6: 0 | D6: Max Market Risk | E6: 750 | F6: Upgrade to Full Val | H6: 190001 | J6: 0.45 | L6: =IF(OR(I$11=0,I$11<H5),0,IF(I$11>$I5,(I$11-$I5)*$J6,0)) -> 0 | M6: =IF(OR(J$11=0,J$11<I5),0,IF(J$11>$I5,(J$11-$I5)*$J6,0)) -> 0 | N6: 0 | O6: 0
A7: HEM Buffer | B7: 1 | D7: Full Inspection | H7: Total Tax | L7: =SUM(L2:L6) -> 0 | M7: =SUM(M2:M6) -> 0 | N7: 0 | O7: 0
A8: Min Acceptable Credit Score | B8: 650 | D8: Risk Ratings | E8: 5 | F8: dual sign off required | H8: Medicare Levy | I8: 0.02
A9: Max Loan Amount | B9: 3000000
A10: Max TAE | B10: 5000000 | H10: Working | I10: App 1 | J10: App 2 | K10: App 3 | L10: App 4
A11: First Choice buffer | B11: 0.03 | H11: Tax Income | I11: ='Nuts and Bolts'!R37 -> 0 | J11: ='Nuts and Bolts'!T37 -> 0 | K11: ='Nuts and Bolts'!V37 -> 0 | L11: ='Nuts and Bolts'!X37 -> 0
A12: CLF | B12: 0.012 | H12: Highest Tax Bracket | I12: =LOOKUP(I$11,mins,results) -> 0 | J12: =LOOKUP(J$11,mins,results) -> 0 | K12: =LOOKUP(K$11,mins,results) -> 0 | L12: =LOOKUP(L$11,mins,results) -> 0
H13: Tax Bracket (Inc Medicare Levy) | I13: =IF(I12=0,0,(I12+$I$8)) -> 0 | J13: =IF(J12=0,0,(J12+$I$8)) -> 0 | K13: 0 | L13: 0
H15: Tax Payable | I15: =L7 -> 0 | J15: =M7 -> 0 | K15: 0 | L15: 0
H17: Medicare Levy | I17: =+I11*$I$8 -> 0 | J17: =+J11*$I$8 -> 0 | K17: =+K11*$I$8 -> 0 | L17: =+L11*$I$8 -> 0
H18: Total Payable | I18: =SUM(I12:I17) -> 0 | J18: =SUM(J12:J17) -> 0 | K18: =SUM(K12:K17) -> 0 | L18: 0
H19: Tax Deduction | I19: =-'Rental Incomes'!E13*I13 -> 0 | J19: =-'Rental Incomes'!F13*J13 -> 0 | K19: =-'Rental Incomes'!G13*K13 -> 0 | L19: =-'Rental Incomes'!H13*L13 -> 0
H20: Net Tax Payable | I20: =SUM(I18:I19) -> 0 | J20: =SUM(J18:J19) -> 0 | K20: 0 | L20: 0
H24: TO UNLOCK ANY FIELDS
H25: FFederal123
A31: Applicant Type | B31: Nil Child | C31: Category | D31: Weighting | F31: Marital Status | H31: Yes/No | J31: Borrower type | L31: Loan product | N31: DSCRs
A32: Single | B32: Single Person | C32: Single Parent | D32: 1 | L32: Select - mandatory
A33: Spouse of applicant | B33: Couple | C33: Couple | D33: 0.5 | F33: Single | H33: Yes | J33: Individual borrower | L33: First Choice | N33: 1.1
A34: Spouse to non-applicant | B34: Couple | C34: Couple | D34: 1 | F34: Spouse of applicant | H34: No | J34: Company guarantor | L34: First Choice Plus | N34: 1.2
A35: Select | B35: 0 | C35: 0 | D35: 0 | F35: Spouse to non-applicant | L35: First Freedom
L36: First Business 30

Sheet Rental Incomes (hidden)
A1: Investment Property Schedule
A4: Existing home loans from servicing calc page | B4: Owner(s) | C4: Inv Loan balance | D4: Actual Interest % | E4: Int deduction - Applicant 1 | F4: Int deduction - Applicant 2 | G4: Int deduction - Applicant 3 | H4: Int deduction - Applicant 4
A5: Existing home loan 1 | B5: Applicant 1 | C5: ='Servicing Calculator'!E64 -> 0 | D5: ='Servicing Calculator'!F64 -> 0 | E5: =IF('Servicing Calculator'!$I64="Yes",('Rental Incomes'!$C5*'Rental Incomes'!$D5*'Servicing Calculator'!J64),0) -> 0 | F5: =IF('Servicing Calculator'!$I64="Yes",('Rental Incomes'!$C5*'Rental Incomes'!$D5*'Servicing Calculator'!K64),0) -> 0 | G5: =IF('Servicing Calculator'!$I64="Yes",('Rental Incomes'!$C5*'Rental Incomes'!$D5*'Servicing Calculator'!L64),0) -> 0 | H5: =IF('Servicing Calculator'!$I64="Yes",('Rental Incomes'!$C5*'Rental Incomes'!$D5*'Servicing Calculator'!M64),0) -> 0
A6: Existing home loan 2 | B6: Applicant 2 | C6: ='Servicing Calculator'!E65 -> 0 | D6: ='Servicing Calculator'!F65 -> 0 | E6: =IF('Servicing Calculator'!$I65="Yes",('Rental Incomes'!$C6*'Rental Incomes'!$D6*'Servicing Calculator'!J65),0) -> 0 | F6: =IF('Servicing Calculator'!$I65="Yes",('Rental Incomes'!$C6*'Rental Incomes'!$D6*'Servicing Calculator'!K65),0) -> 0 | G6: =IF('Servicing Calculator'!$I65="Yes",('Rental Incomes'!$C6*'Rental Incomes'!$D6*'Servicing Calculator'!L65),0) -> 0 | H6: =IF('Servicing Calculator'!$I65="Yes",('Rental Incomes'!$C6*'Rental Incomes'!$D6*'Servicing Calculator'!M65),0) -> 0
A7: Existing home loan 3 | B7: Applicant 3 | C7: ='Servicing Calculator'!E66 -> 0 | D7: ='Servicing Calculator'!F66 -> 0 | E7: =IF('Servicing Calculator'!$I66="Yes",('Rental Incomes'!$C7*'Rental Incomes'!$D7*'Servicing Calculator'!J66),0) -> 0 | F7: =IF('Servicing Calculator'!$I66="Yes",('Rental Incomes'!$C7*'Rental Incomes'!$D7*'Servicing Calculator'!K66),0) -> 0 | G7: =IF('Servicing Calculator'!$I66="Yes",('Rental Incomes'!$C7*'Rental Incomes'!$D7*'Servicing Calculator'!L66),0) -> 0 | H7: =IF('Servicing Calculator'!$I66="Yes",('Rental Incomes'!$C7*'Rental Incomes'!$D7*'Servicing Calculator'!M66),0) -> 0
A8: Existing home loan 4 | B8: Applicant 4 | C8: ='Servicing Calculator'!E67 -> 0 | D8: ='Servicing Calculator'!F67 -> 0 | E8: =IF('Servicing Calculator'!$I67="Yes",('Rental Incomes'!$C8*'Rental Incomes'!$D8*'Servicing Calculator'!J67),0) -> 0 | F8: =IF('Servicing Calculator'!$I67="Yes",('Rental Incomes'!$C8*'Rental Incomes'!$D8*'Servicing Calculator'!K67),0) -> 0 | G8: =IF('Servicing Calculator'!$I67="Yes",('Rental Incomes'!$C8*'Rental Incomes'!$D8*'Servicing Calculator'!L67),0) -> 0 | H8: =IF('Servicing Calculator'!$I67="Yes",('Rental Incomes'!$C8*'Rental Incomes'!$D8*'Servicing Calculator'!M67),0) -> 0
A9: Existing home loan 5 | B9: Applicant 5 | C9: ='Servicing Calculator'!E68 -> 0 | D9: ='Servicing Calculator'!F68 -> 0 | E9: =IF('Servicing Calculator'!$I68="Yes",('Rental Incomes'!$C9*'Rental Incomes'!$D9*'Servicing Calculator'!J68),0) -> 0 | F9: =IF('Servicing Calculator'!$I68="Yes",('Rental Incomes'!$C9*'Rental Incomes'!$D9*'Servicing Calculator'!K68),0) -> 0 | G9: =IF('Servicing Calculator'!$I68="Yes",('Rental Incomes'!$C9*'Rental Incomes'!$D9*'Servicing Calculator'!L68),0) -> 0 | H9: =IF('Servicing Calculator'!$I68="Yes",('Rental Incomes'!$C9*'Rental Incomes'!$D9*'Servicing Calculator'!M68),0) -> 0
A10: Existing home loan 6 | B10: Applicant 6 | C10: ='Servicing Calculator'!E69 -> 0 | D10: ='Servicing Calculator'!F69 -> 0 | E10: =IF('Servicing Calculator'!$I69="Yes",('Rental Incomes'!$C10*'Rental Incomes'!$D10*'Servicing Calculator'!J69),0) -> 0 | F10: =IF('Servicing Calculator'!$I69="Yes",('Rental Incomes'!$C10*'Rental Incomes'!$D10*'Servicing Calculator'!K69),0) -> 0 | G10: =IF('Servicing Calculator'!$I69="Yes",('Rental Incomes'!$C10*'Rental Incomes'!$D10*'Servicing Calculator'!L69),0) -> 0 | H10: =IF('Servicing Calculator'!$I69="Yes",('Rental Incomes'!$C10*'Rental Incomes'!$D10*'Servicing Calculator'!M69),0) -> 0
A11: Existing home loan 7 | B11: Applicant 7 | C11: ='Servicing Calculator'!E70 -> 0 | D11: ='Servicing Calculator'!F70 -> 0 | E11: =IF('Servicing Calculator'!$I70="Yes",('Rental Incomes'!$C11*'Rental Incomes'!$D11*'Servicing Calculator'!J70),0) -> 0 | F11: =IF('Servicing Calculator'!$I70="Yes",('Rental Incomes'!$C11*'Rental Incomes'!$D11*'Servicing Calculator'!K70),0) -> 0 | G11: =IF('Servicing Calculator'!$I70="Yes",('Rental Incomes'!$C11*'Rental Incomes'!$D11*'Servicing Calculator'!L70),0) -> 0 | H11: =IF('Servicing Calculator'!$I70="Yes",('Rental Incomes'!$C11*'Rental Incomes'!$D11*'Servicing Calculator'!M70),0) -> 0
A12: Existing home loan 8 | B12: Applicant 8 | C12: ='Servicing Calculator'!E71 -> 0 | D12: ='Servicing Calculator'!F71 -> 0 | E12: =IF('Servicing Calculator'!$I71="Yes",('Rental Incomes'!$C12*'Rental Incomes'!$D12*'Servicing Calculator'!J71),0) -> 0 | F12: =IF('Servicing Calculator'!$I71="Yes",('Rental Incomes'!$C12*'Rental Incomes'!$D12*'Servicing Calculator'!K71),0) -> 0 | G12: =IF('Servicing Calculator'!$I71="Yes",('Rental Incomes'!$C12*'Rental Incomes'!$D12*'Servicing Calculator'!L71),0) -> 0 | H12: =IF('Servicing Calculator'!$I71="Yes",('Rental Incomes'!$C12*'Rental Incomes'!$D12*'Servicing Calculator'!M71),0) -> 0
A13: TOTALS | C13: =SUM(C5:C12) -> 0 | E13: =SUM(E5:E12) -> 0 | F13: =SUM(F5:F12) -> 0 | G13: =SUM(G5:G12) -> 0 | H13: =SUM(H5:H12) -> 0
A14: Month | E14: ='Rental Incomes'!E13/12 -> 0 | F14: ='Rental Incomes'!F13/12 -> 0 | G14: ='Rental Incomes'!G13/12 -> 0 | H14: ='Rental Incomes'!H13/12 -> 0
